fUSD/lending_fUSD_20260202
["ID","MTS","AMOUNT","RATE_DAILY","PERIOD"]
[404291514,1770037845794,-250.0,0.00016275,2]
[404291515,1770037845805,-250.0,0.00016275,2]
[404291516,1770037845814,-151.0,0.00016275,2]
[404291517,1770037845823,-209.40437684,0.00016275,2]
[404291518,1770037845833,-232.68774879,0.00016275,2]
[404291519,1770037845843,-859.80605061,0.00016275,2]
[404291520,1770037845852,-277.35679052,0.00016275,2]
[404291521,1770037845862,-322.6107,0.00016275,2]
[404291522,1770037845871,-209.40437684,0.00016275,2]
[404291523,1770037845880,-209.40437684,0.00016275,2]
[404291524,1770037845890,-493.56259035,0.00016315,2]
[404291525,1770037845899,-217.15233878,0.0001633,2]
[404291526,1770037845908,-159.99318318,0.00016357,2]
[404291527,1770037845917,-225.18697532,0.00016385,2]
[404291528,1770037845927,-163.0,0.000164,2]
[404291529,1770037845937,-2835.0,0.000164,2]
[404291531,1770037845946,-1330.2,0.00016438,2]
[404291533,1770037845956,-1872.11781497,0.00016438,2]
[404291534,1770037845965,-1882.57323472,0.00016438,2]
[404291535,1770037845974,-1882.57323472,0.00016438,2]
[404291538,1770037845983,-1882.57323472,0.00016438,2]
[404291539,1770037845993,-1882.57323472,0.00016438,2]
[404291540,1770037846002,-1882.57323472,0.00016438,2]
[404291541,1770037846014,-1882.57323472,0.00016438,2]
[404291542,1770037846024,-1882.57323472,0.00016438,2]
[404291543,1770037846033,-1882.57323472,0.00016438,2]
[404291544,1770037846042,-1882.57323472,0.00016438,2]
[404291545,1770037846051,-1882.57323472,0.00016438,2]
[404291546,1770037846060,-1882.57323472,0.00016438,2]
[404291547,1770037846069,-1882.57323472,0.00016438,2]
[404291548,1770037846079,-1882.57323472,0.00016438,2]
[404291549,1770037846088,-1882.57323472,0.00016438,2]
[404291550,1770037846097,-1882.57323472,0.00016438,2]
[404291551,1770037846106,-1882.57323472,0.00016438,2]
[404291552,1770037846115,-1882.57323472,0.00016438,2]
[404291553,1770037846124,-1882.57323472,0.00016438,2]
[404291554,1770037846133,-1882.57323472,0.00016438,2]
[404291555,1770037846143,-1882.57323472,0.00016438,2]
[404291556,1770037846151,-1882.57323472,0.00016438,2]
[404291557,1770037846160,-1882.57323472,0.00016438,2]
[404291558,1770037846169,-1882.57323472,0.00016438,2]
[404291559,1770037846178,-1882.57323472,0.00016438,2]
[404291560,1770037846189,-1882.57323472,0.00016438,2]
[404291561,1770037846199,-1882.57323472,0.00016438,2]
[404291562,1770037846209,-1882.57323472,0.00016438,2]
[404291563,1770037846218,-1882.57323472,0.00016438,2]
[404291564,1770037846227,-1882.57323472,0.00016438,2]
[404291565,1770037846237,-1882.57323472,0.00016438,2]
[404291566,1770037846246,-1882.57323472,0.00016438,2]
[404291567,1770037846255,-1882.57323472,0.00016438,2]
[404291568,1770037846265,-1882.57323472,0.00016438,2]
[404291569,1770037846274,-1882.57323472,0.00016438,2]
[404291570,1770037846284,-1882.57323472,0.00016438,2]
[404291571,1770037846293,-1882.57323472,0.00016438,2]
[404291572,1770037846302,-1882.57323472,0.00016438,2]
[404291573,1770037846311,-1882.57323472,0.00016438,2]
[404291574,1770037846320,-1882.57323472,0.00016438,2]
[404291575,1770037846329,-1882.57323472,0.00016438,2]
[404291576,1770037846339,-1882.57323472,0.00016438,2]
[404291577,1770037846347,-1882.57323472,0.00016438,2]
[404291578,1770037846356,-1882.57323472,0.00016438,2]
[404291579,1770037846366,-1882.57323472,0.00016438,2]
[404291580,1770037846375,-1882.57323472,0.00016438,2]
[404291581,1770037846385,-1882.57323472,0.00016438,2]
[404291582,1770037846395,-1882.57323472,0.00016438,2]
[404291583,1770037846404,-1882.57323472,0.00016438,2]
[404291584,1770037846414,-1882.57323472,0.00016438,2]
[404291585,1770037846423,-1882.57323472,0.00016438,2]
[404291586,1770037846432,-1882.57323472,0.00016438,2]
[404291587,1770037846442,-900.0,0.00016438,2]
[404291589,1770037846452,-250.55733734,0.00016438,2]
[404291590,1770037846462,-800.78453244,0.00016438,2]
[404291591,1770037846471,-233.51889341,0.0001644,2]
[404291592,1770037846480,-260.0592669,0.00016459,2]
[404291593,1770037846489,-11689.16081767,0.00016469,2]
[404291594,1770037846498,-200.02287089,0.00016478,2]
[404291595,1770037846507,-13399.44937959,0.00016491,2]
[404291596,1770037846516,-242.15909246,0.00016495,2]
[404291597,1770037846525,-251.11897888,0.0001655,2]
[404291598,1770037846534,-352.84918147,0.00016568,2]
[404291599,1770037846543,-1500.0,0.00016568,2]
[404291600,1770037846552,-505.45817911,0.00016568,2]
[404291601,1770037846561,-1500.0,0.00016568,2]
[404291602,1770037846570,-1500.0,0.00016568,2]
[404291603,1770037846579,-1500.0,0.00016568,2]
[404291604,1770037846588,-1045.1454494,0.00016568,2]
[404291606,1770037846598,-1124.86514765,0.00016568,2]
[404291607,1770037846607,-1500.0,0.00016568,2]
[404291608,1770037846616,-1500.0,0.00016568,2]
[404291609,1770037846626,-1500.0,0.00016568,2]
[404291610,1770037846635,-1500.0,0.00016568,2]
[404291611,1770037846645,-504.30163313,0.00016568,2]
[404291612,1770037846654,-240.83933027,0.00016568,2]
[404291613,1770037846665,-1119.84098311,0.00016568,2]
[404291614,1770037846674,-518.80564021,0.00016568,2]
[404291615,1770037846683,-1500.0,0.00016568,2]
[404291616,1770037846693,-1005.54193795,0.00016568,2]
[404291617,1770037846703,-505.38162593,0.00016568,2]
[404291618,1770037846712,-1500.0,0.00016568,2]
[404291619,1770037846721,-503.56149344,0.00016568,2]
[404291620,1770037846730,-261.27528148,0.00016568,2]
[404291621,1770037846740,-845.31167706,0.00016568,2]
[404291622,1770037846750,-1500.0,0.00016568,2]
[404291623,1770037846760,-665.40489721,0.00016568,2]
[404291624,1770037846770,-1005.24936027,0.00016568,2]
[404291625,1770037846779,-1500.0,0.00016568,2]
[404291626,1770037846797,-1500.0,0.00016568,2]
[404291627,1770037846808,-1500.0,0.00016568,2]
[404291628,1770037846818,-776.88278142,0.00016568,2]
[404291629,1770037846827,-1500.0,0.00016568,2]
[404291630,1770037846837,-1004.6853335,0.00016568,2]
[404291631,1770037846847,-1500.0,0.00016568,2]
[404291632,1770037846857,-507.10580581,0.00016584,2]
[404291633,1770037846866,-260.4103811,0.00016605,2]
[404291634,1770037846876,-152.49,0.00016644,2]
[404291635,1770037846885,-270.0455652,0.0001666,2]
[404291636,1770037846895,-294.02,0.00016705,2]
[404291637,1770037846904,-280.03725112,0.00016715,2]
[404291638,1770037846914,-839.0,0.0001672,2]
[404291639,1770037846923,-839.0,0.0001672,2]
[404291640,1770037846933,-809.0,0.0001672,2]
[404291641,1770037846943,-163.0,0.0001672,2]
[404291642,1770037846952,-839.0,0.0001672,2]
[404291643,1770037846962,-290.39862941,0.0001677,2]
[404291644,1770037846972,-181.08010149,0.00016823,2]
[404291645,1770037846982,-1481.23780761,0.00016823,2]
[404291646,1770037846992,-151.49674582,0.00016823,2]
[404291647,1770037847002,-217.15233878,0.00016823,2]
[404291648,1770037847011,-891.61887448,0.00016823,2]
[404291649,1770037847021,-168.90333538,0.00016823,2]
[404291650,1770037847030,-217.15233878,0.00016823,2]
[404291651,1770037847039,-301.1433787,0.00016825,2]
[404291652,1770037847048,-839.0,0.0001687,2]
[404291653,1770037847058,-500.0,0.0001687,2]
[404291654,1770037847067,-500.0,0.00016877,2]
[404291655,1770037847077,-9999.99,0.00016922,2]
[404291656,1770037847086,-4609.0,0.00016922,2]
[404291657,1770037847096,-303.68,0.00016959,2]
[404291658,1770037847105,-159.99318318,0.00016962,2]
[404291659,1770037847115,-200.0,0.00016983,2]
[404291660,1770037847124,-300.0,0.00017,2]
[404291661,1770037847135,-839.0,0.0001704,2]
[404291662,1770037847144,-163.0,0.0001704,2]
[404291663,1770037847153,-370.87018135,0.000171,2]
[404291664,1770037847163,-315.28060531,0.00017116,2]
[404291665,1770037847172,-2000.0,0.00017116,2]
[404291666,1770037847181,-1756.98671009,0.00017116,2]
[404291667,1770037847190,-1988.36339388,0.00017116,2]
[404291668,1770037847203,-1008.230722,0.00017116,2]
[404291669,1770037847212,-2000.0,0.00017116,2]
[404291670,1770037847222,-2000.0,0.00017116,2]
[404291671,1770037847231,-1143.18674336,0.00017116,2]
[404291672,1770037847242,-2128.18837233,0.00017116,2]
[404291673,1770037847251,-1189.68040771,0.00017116,2]
[404291674,1770037847261,-1474.64879752,0.00017116,2]
[404291675,1770037847271,-1958.07275487,0.00017116,2]
[404291676,1770037847280,-2000.0,0.00017116,2]
[404291677,1770037847289,-2000.0,0.00017116,2]
[404291678,1770037847299,-1006.20015718,0.00017116,2]
[404291679,1770037847308,-2000.0,0.00017116,2]
[404291680,1770037847317,-1899.6725397,0.00017148,2]
[404291681,1770037847326,-11689.16081767,0.00017184,2]
[404291682,1770037847335,-13399.44937959,0.00017195,2]
[404291683,1770037847344,-1330.2,0.00017202,2]
[404291684,1770037847353,-150.0,0.00017254,2]
[404291685,1770037847362,-559.85,0.00017254,2]
[404291686,1770037847372,-151.18,0.00017255,2]
[404291687,1770037847381,-1000.0,0.0001726,2]
[404291688,1770037847390,-393588.9189272,0.00017316,2]
[404291689,1770037847399,-12186.7642109,0.00017316,2]
[404291690,1770037847408,-15389.9744544,0.00017316,2]
[404291691,1770037847418,-59389.5698859,0.00017316,2]
[404291692,1770037847427,-3437.1130951,0.00017316,2]
[404291693,1770037847439,-20253.7717645,0.00017316,2]
[404291694,1770037847448,-3601.9971231,0.00017316,2]
[404291695,1770037847460,-163.0,0.0001736,2]
[404291696,1770037847470,-2835.0,0.0001736,2]
[404291697,1770037847479,-187.78006525,0.00017371,2]
[404291698,1770037847491,-1536.04360649,0.00017371,2]
[404291699,1770037847501,-225.18697532,0.00017371,2]
[404291700,1770037847512,-924.60877284,0.00017371,2]
[404291701,1770037847522,-225.18697532,0.00017371,2]
[404291702,1770037847531,-5888.0,0.00017385,2]
[404291703,1770037847542,-1500.0,0.000174,2]
[404291704,1770037847553,-200.009499,0.00017409,2]
[404291705,1770037847564,-5888.0,0.00017484,2]
[404291706,1770037847574,-163.0,0.00017495,2]
[404291707,1770037847583,-1000.0,0.00017534,2]
[404291708,1770037847594,-5888.0,0.00017535,2]
[404291709,1770037847605,-202.85822223,0.00017558,2]
[404291710,1770037847614,-159.99318318,0.00017568,2]
[404291711,1770037847624,-23505.55386991,0.00017581,2]
[404291712,1770037847636,-31803.849,0.00017581,2]
[404291713,1770037847647,-10091.57601831,0.00017592,2]
[404291714,1770037847659,-1500.0,0.000176,2]
[404291715,1770037847668,-5888.0,0.00017605,2]
[404291716,1770037847678,-1860.35783052,0.00017637,2]
[404291717,1770037847688,-1098.98511289,0.0001764,2]
[404291718,1770037847697,-1631.97005508,0.0001764,2]
[404291719,1770037847708,-3012.2001319,0.0001764,2]
[404291720,1770037847717,-334.5472959,0.00017644,2]
[404291721,1770037847731,-1502.53462592,0.00017664,2]
[404291722,1770037847742,-636.8475123,0.00017664,2]
[404291723,1770037847753,-947.23523297,0.00017664,2]
[404291724,1770037847763,-1002.03881526,0.00017664,2]
[404291725,1770037847773,-2004.86417643,0.00017664,2]
[404291726,1770037847784,-1216.63993214,0.00017664,2]
[404291727,1770037847793,-839.0,0.0001768,2]
[404291728,1770037847803,-839.0,0.0001768,2]
[404291729,1770037847812,-163.0,0.0001768,2]
[404291730,1770037847822,-163.0,0.0001768,2]
[404291731,1770037847832,-1860.35783051,0.0001769,2]
[404291732,1770037847843,-25000.0,0.00017733,3]
[404291733,1770037847853,-386.0,0.00017737,2]
[404291734,1770037847863,-25000.0,0.00017742,3]
[404291735,1770037847872,-1860.35783051,0.00017742,2]
[404291736,1770037847881,-25000.0,0.0001775,3]
[404291737,1770037847891,-25000.0,0.00017759,3]
[404291738,1770037847900,-386.0,0.00017761,2]
[404291739,1770037847910,-25000.0,0.00017768,3]
[404291740,1770037847919,-25000.0,0.00017777,3]
[404291741,1770037847929,-386.0,0.00017781,2]
[404291742,1770037847939,-234.72260264,0.00017784,2]
[404291743,1770037847948,-5888.0,0.00017785,2]
[404291744,1770037847958,-25000.0,0.00017786,3]
[404291745,1770037847968,-25000.0,0.00017794,3]
[404291746,1770037847978,-1860.35783051,0.00017795,2]
[404291747,1770037847987,-386.0,0.00017797,2]
[404291748,1770037847997,-10000.0,0.000178,2]
[404291749,1770037848006,-2844.0,0.000178,2]
[404291750,1770037848017,-25000.0,0.00017803,3]
[404291751,1770037848028,-500.0,0.00017808,2]
[404291752,1770037848039,-1000.0,0.00017808,2]
[404291753,1770037848049,-25000.0,0.00017812,3]
[404291754,1770037848059,-386.0,0.00017814,2]
[404291755,1770037848070,-2000.0,0.0001782,2]
[404291756,1770037848082,-2000.0,0.0001782,2]
[404291757,1770037848093,-25000.0,0.00017821,3]
[404291758,1770037848102,-25000.0,0.0001783,3]
[404291759,1770037848112,-38230.0690539,0.0001783,2]
[404291760,1770037848121,-386.0,0.00017834,2]
[404291761,1770037848131,-500.0,0.00017836,2]
[404291762,1770037848140,-25000.0,0.00017838,3]
[404291763,1770037848149,-386.0,0.00017841,2]
[404291764,1770037848158,-5888.0,0.00017844,2]
[404291765,1770037848167,-25000.0,0.00017847,3]
[404291766,1770037848176,-1860.35783051,0.00017847,2]
[404291767,1770037848185,-200.0,0.00017855,2]
[404291768,1770037848403,-200.0,0.00017856,2]
[404291769,1770037848413,-25000.0,0.00017856,3]
[404291770,1770037848422,-200.0,0.00017856,2]
[404291771,1770037848431,-200.0,0.00017856,2]
[404291772,1770037848440,-386.0,0.00017858,2]
[404291773,1770037848449,-500.0,0.00017863,2]
[404291774,1770037848458,-25000.0,0.00017865,3]
[404291775,1770037848467,-25000.0,0.00017874,3]
[404291776,1770037848477,-772.93,0.00017875,2]
[404291777,1770037848487,-25000.0,0.00017882,3]
[404291778,1770037848496,-386.0,0.00017885,2]
[404291779,1770037848507,-25000.0,0.00017891,3]
[404291780,1770037848516,-386.0,0.00017894,2]
[404291781,1770037848525,-578.62672512,0.000179,2]
[404291782,1770037848535,-25000.0,0.000179,3]
[404291783,1770037848546,-493.56259035,0.000179,2]
[404291784,1770037848556,-202.85822223,0.000179,2]
[404291785,1770037848576,-11689.16081767,0.000179,2]
[404291786,1770037848587,-1860.35783051,0.000179,2]
[404291787,1770037848596,-13399.44937959,0.000179,2]
[404291788,1770037848606,-480.55721144,0.000179,2]
[404291789,1770037848616,-500.0,0.00017918,2]
[404291790,1770037848625,-194.72792766,0.00017919,2]
[404291791,1770037848635,-1592.87721993,0.00017919,2]
[404291792,1770037848645,-233.51889341,0.00017919,2]
[404291793,1770037848657,-958.81929743,0.00017919,2]
[404291794,1770037848668,-233.51889341,0.00017919,2]
[404291795,1770037848678,-152.49,0.00017928,2]
[404291796,1770037848689,-386.0,0.00017929,2]
[404291797,1770037848699,-196.02,0.0001796,2]
[404291798,1770037848708,-1330.2,0.00017966,2]
[404291799,1770037848718,-500.0,0.0001797,2]
[404291800,1770037848728,-505.94629065,0.0001797,2]
[404291801,1770037848740,-152.49,0.00017971,2]
[404291802,1770037848749,-506.1208044,0.00017972,2]
[404291803,1770037848759,-282.06,0.00017977,2]
[404291804,1770037848769,-500.0,0.00017982,2]
[404291805,1770037848779,-260.0592669,0.0001799,2]
[404291806,1770037848788,-260.0592669,0.0001799,2]
[404291807,1770037848797,-386.0,0.00017991,2]
[404291808,1770037848807,-153.40029052,0.00017999,2]
[404291809,1770037848818,-300.0,0.00017999,2]
[404291810,1770037848828,-300.0,0.00017999,2]
[404291811,1770037848837,-300.0,0.00017999,2]
[404291812,1770037848846,-17205.90121961,0.00017999,3]
[404291813,1770037848856,-300.0,0.00017999,2]
[404291814,1770037848867,-5192291.33407465,0.00018,2]
[404291815,1770037849403,-151.0,0.00011659,2]
[404291816,1770037849429,-308.01606559,0.00011659,2]
[404291817,1770037849650,-1469.0,0.00011946,2]
[404291818,1770037849664,-819.0,0.0001197,2]
[404291819,1770037849677,-1133.3792102,0.000121,2]
[404291820,1770037849716,-242.07897242,0.000121,2]
[404291821,1770037849730,-160.0,0.000129,2]
[404291822,1770037849743,-77533.09548936,0.00018,2]
[404291823,1770037849763,-1033.59956996,0.00018,2]
[404291824,1770037849777,-330.24087922,0.00018,2]
[404291825,1770037849793,-904.42977833,0.00018,2]
[404291826,1770037851360,-1323.0,0.00011994,2]
[404291827,1770037851370,-2574.02661958,0.00018,2]
[404291828,1770037851382,-23631.75523459,0.00018,2]
[404291829,1770037851392,-999.0,0.00018,2]
[404291830,1770037854352,1129.60682712,0.00011559,2]
[404291838,1770038211202,513.34364437,0.00022,90]
[404291841,1770038230395,151.0,0.00011459,2]
[404291842,1770038231025,151.0,0.00011459,2]
[404291843,1770038231729,151.0,0.00011459,2]
[404291844,1770038231765,500.0,0.00011459,2]
[404291845,1770038231800,151.0,0.00011459,2]
[404291846,1770038232519,151.0,0.00011459,2]
[404291847,1770038232553,151.0,0.00011459,2]
[404291848,1770038233032,500.0,0.00011459,2]
[404291849,1770038233196,151.0,0.00011459,2]
[404291850,1770038233466,151.0,0.00011459,2]
[404291851,1770038233683,500.0,0.00011459,2]
[404291852,1770038233972,151.0,0.00011459,2]
[404291853,1770038234089,151.0,0.00011459,2]
[404291854,1770038234711,151.0,0.00011459,2]
[404291855,1770038234753,151.0,0.00011459,2]
[404291856,1770038234846,500.0,0.00011459,2]
[404291857,1770038235361,151.0,0.00011459,2]
[404291858,1770038235398,151.0,0.00011459,2]
[404291859,1770038235475,500.0,0.00011459,2]
[404291860,1770038236041,151.0,0.00011459,2]
[404291861,1770038236098,151.0,0.00011459,2]
[404291862,1770038236247,84.01,0.00011459,2]
[404291863,1770038236268,415.99,0.00011459,2]
[404291864,1770038236685,151.0,0.00011459,2]
[404291865,1770038236989,500.0,0.00011459,2]
[404291866,1770038237031,151.0,0.00011459,2]
[404291867,1770038237301,151.0,0.00011459,2]
[404291868,1770038237617,500.0,0.00011459,2]
[404291869,1770038237696,151.0,0.00011459,2]
[404291870,1770038238121,151.0,0.00011459,2]
[404291871,1770038238470,507.8574049,0.00011459,2]
[404291872,1770038238512,151.0,0.00011459,2]
[404291873,1770038238789,151.0,0.00011459,2]
[404291874,1770038238994,151.0,0.00011459,2]
[404291875,1770038239449,151.0,0.00011459,2]
[404291876,1770038240063,151.0,0.00011459,2]
[404291877,1770038240690,151.0,0.00011459,2]
[404291878,1770038241299,151.0,0.00011459,2]
[404291879,1770038241904,151.0,0.00011459,2]
[404291880,1770038242584,151.0,0.00011459,2]
[404291881,1770038243195,151.0,0.00011459,2]
[404291882,1770038245531,-500.0,0.00011459,2]
[404291883,1770038254526,500.0,0.00011459,2]
[404291884,1770038255124,500.0,0.00011459,2]
[404291885,1770038255909,500.0,0.00011459,2]
[404291886,1770038256527,500.0,0.00011459,2]
[404291887,1770038257252,500.0,0.00011459,2]
[404291888,1770038257838,500.0,0.00011459,2]
[404291889,1770038258459,500.0,0.00011459,2]
[404291890,1770038259101,500.0,0.00011459,2]
[404291891,1770038259729,0.01,0.00011459,2]
[404291892,1770038259754,499.99,0.00011459,2]
[404291893,1770038260332,500.0,0.00011459,2]
[404291894,1770038261034,500.0,0.00011459,2]
[404291895,1770038404499,247.0,0.00011879,2]
[404291896,1770038480453,-173.0,0.000123,2]
[404291917,1770038557564,-507.10580581,0.00011879,2]
[404291918,1770038557595,-151.0,0.00011879,2]
[404291919,1770038557629,-151.0,0.00011879,2]
[404291920,1770038557660,-151.0,0.00011879,2]
[404291921,1770038557691,-151.0,0.00011879,2]
[404291922,1770038557721,-151.0,0.00011879,2]
[404291923,1770038557751,-151.0,0.00011879,2]
[404291924,1770038557782,-151.0,0.00011879,2]
[404291925,1770038558378,151.0,0.00011879,2]
[404291926,1770038558659,151.0,0.00011879,2]
[404291927,1770038559290,151.0,0.00011879,2]
[404291928,1770038559962,151.0,0.00011879,2]
[404291949,1770038618180,660.0,0.0002,30]
[404292017,1770039032130,-678.52844531,0.00013213,2]
[404292018,1770039032141,-832.33893487,0.00013213,2]
[404292019,1770039032152,-495.74682973,0.00013213,2]
[404292020,1770039032167,-478.61902009,0.00013213,2]
[404292021,1770039032179,-253.55550978,0.0001328,2]
[404292022,1770039032188,-138.82547013,0.00013313,2]
[404292023,1770039032213,-161.17452987,0.00013313,2]
[404292024,1770039032223,-1200.0,0.00013313,2]
[404292025,1770039032232,-300.0,0.00013313,2]
[404292026,1770039032242,-300.0,0.00013313,2]
[404292027,1770039032252,-150.0,0.00013313,2]
[404292028,1770039032261,-14.3653689,0.00013314,2]
[404292029,1770039032273,-941.85870651,0.00013314,2]
[404292030,1770039032303,-1485.18919537,0.00013314,2]
[404292031,1770039032312,-6442.92824852,0.00013314,2]
[404292032,1770039032322,-11366.08913508,0.00013314,2]
[404292033,1770039032331,-41747.76,0.00013474,2]
[404292034,1770039032341,-500.0,0.00013698,2]
[404292035,1770039032351,-198.39137328,0.00013735,2]
[404292036,1770039032360,-642.79089811,0.00013973,2]
[404292038,1770039032369,-181.57502123,0.00013973,2]
[404292039,1770039032378,-500.0,0.00013973,2]
[404292040,1770039032387,-504.42982336,0.00013973,2]
[404292041,1770039032396,-500.0,0.00013973,2]
[404292042,1770039032405,-500.0,0.00013973,2]
[404292043,1770039032414,-500.90033899,0.00013973,2]
[404292044,1770039032424,-500.0,0.00013973,2]
[404292045,1770039032433,-500.0,0.00013973,2]
[404292046,1770039032442,-500.0,0.00013973,2]
[404292047,1770039032451,-259.40505883,0.00013973,2]
[404292048,1770039032460,-173.0,0.0001398,2]
[404292049,1770039032469,-195.0,0.00014068,2]
[404292050,1770039032478,-195.0,0.00014068,2]
[404292051,1770039032488,-1101.49426781,0.00014068,2]
[404292052,1770039032500,-600.0,0.00014068,2]
[404292053,1770039032510,-600.0,0.00014068,2]
[404292054,1770039032519,-600.0,0.00014068,2]
[404292055,1770039032528,-600.0,0.00014068,2]
[404292056,1770039032537,-600.0,0.00014068,2]
[404292057,1770039032546,-2886.52,0.00014096,2]
[404292058,1770039032558,-999.99,0.00014096,2]
[404292059,1770039032567,-886.69,0.00014096,2]
[404292060,1770039032576,-150.99,0.00014096,2]
[404292061,1770039032585,-9999.99,0.00014096,2]
[404292062,1770039032595,-402.65159203,0.00014204,2]
[404292063,1770039032604,-200.0,0.00014245,2]
[404292064,1770039032614,-3240.0,0.00014278,2]
[404292065,1770039032624,-3776.56493821,0.0001439,2]
[404292066,1770039032633,-4019.83481394,0.00014397,2]
[404292067,1770039032642,-1203.52590974,0.00014397,2]
[404292068,1770039032651,-1203.52590974,0.00014397,2]
[404292069,1770039032660,-202.85822223,0.00014397,2]
[404292070,1770039032669,-1860.35783052,0.00014397,2]
[404292071,1770039032678,-5844.58040888,0.00014397,2]
[404292072,1770039032687,-1800.0,0.000144,2]
[404292073,1770039032696,-260.0592669,0.00014411,2]
[404292074,1770039032705,-4793.02,0.00014415,2]
[404292075,1770039032714,-255.0,0.00014418,2]
[404292076,1770039032722,-514.44012636,0.0001442,2]
[404292077,1770039032731,-500.0,0.0001442,2]
[404292078,1770039032740,-583.91278817,0.0001442,2]
[404292079,1770039032749,-117978.83901761,0.00014421,2]
[404292080,1770039032760,-1164.57560884,0.00014421,2]
[404292086,1770039038072,-6728.37818209,0.00014421,2]
[404292087,1770039038084,-2816.86303894,0.00014421,2]
[404292088,1770039038195,-694.46353124,0.00014421,2]
[404292089,1770039038206,-2881.16460738,0.00014421,2]
[404292090,1770039038255,-13165.44379314,0.00014421,2]
[404292126,1770039040227,-465.59799995,0.00014421,2]
[404292129,1770039040238,-6251.40605885,0.00014421,2]
[404292130,1770039040399,-172635.06808652,0.00014421,2]
[404292131,1770039040569,-2575218.20007544,0.00014421,2]
[404292133,1770039040579,-9723.39,0.00014497,2]
[404292135,1770039040588,-500.0,0.00014512,2]
[404292137,1770039040598,-151.0,0.00014512,2]
[404292139,1770039040607,-151.0,0.00014512,2]
[404292140,1770039040616,-151.0,0.00014512,2]
[404292141,1770039040627,-151.0,0.00014512,2]
[404292142,1770039040636,-151.0,0.00014512,2]
[404292143,1770039040644,-151.0,0.00014512,2]
[404292144,1770039040653,-151.0,0.00014512,2]
[404292145,1770039040662,-151.0,0.00014512,2]
[404292146,1770039040671,-151.0,0.00014512,2]
[404292147,1770039040681,-151.0,0.00014512,2]
[404292148,1770039040689,-151.0,0.00014512,2]
[404292149,1770039040698,-1000.0,0.00014521,2]
[404292150,1770039040707,-277.94683653,0.00014521,2]
[404292151,1770039040715,-1000.0,0.00014521,2]
[404292152,1770039040724,-1061.85744553,0.00014521,2]
[404292153,1770039040733,-324.13265253,0.00014521,2]
[404292155,1770039040742,-1003.26586101,0.00014521,2]
[404292157,1770039040751,-235.22,0.00014531,2]
[404292159,1770039040761,-250.0,0.00014572,2]
[404292160,1770039040770,-195.0,0.00014572,2]
[404292161,1770039040779,-160.0,0.0001459,2]
[404292162,1770039040788,-160.0,0.0001459,2]
[404292163,1770039040798,-1680.0,0.00014644,2]
[404292164,1770039040808,-383.04806819,0.00014644,2]
[404292165,1770039040818,-4625.57151435,0.00014644,2]
[404292166,1770039040827,-2500.0,0.00014644,2]
[404292167,1770039040836,-2500.0,0.00014644,2]
[404292168,1770039040846,-2500.0,0.00014644,2]
[404292169,1770039040855,-2500.0,0.00014644,2]
[404292170,1770039040864,-201.49801051,0.00014645,2]
[404292171,1770039040873,-195.0,0.00014645,2]
[404292172,1770039040883,-1000.0,0.00014687,2]
[404292173,1770039040892,-1209.75,0.0001469,2]
[404292174,1770039040901,-1209.75,0.00014729,2]
[404292175,1770039040910,-1209.75,0.00014767,2]
[404292176,1770039040920,-5844.58040883,0.00014786,2]
[404292177,1770039040930,-4019.83481387,0.00014786,2]
[404292178,1770039040939,-150.0,0.00014794,2]
[404292179,1770039040948,-150.0,0.00014794,2]
[404292180,1770039040957,-150.0,0.00014794,2]
[404292181,1770039040967,-150.0,0.00014794,2]
[404292182,1770039040976,-500.0,0.00014794,2]
[404292183,1770039040985,-150.0,0.00014794,2]
[404292184,1770039040994,-150.4373073,0.00014794,2]
[404292185,1770039041003,-150.0,0.00014794,2]